fUSD/lending_fUSD_20240708
["ID","MTS","AMOUNT","RATE_DAILY","PERIOD"]
[331453106,1720424518123,-1082.5,0.00034038,40]
[331453107,1720424518169,-1786.11,0.00034038,36]
[331453108,1720424518210,-626.54,0.00034038,46]
[331453109,1720424518250,-1082.5,0.00034038,41]
[331453110,1720424518292,-1786.11,0.00034038,37]
[331453111,1720424518332,-626.54,0.00034038,47]
[331453112,1720424518375,-909.76,0.00034038,30]
[331453113,1720424518417,-1786.11,0.00034038,38]
[331453114,1720424518458,-626.54,0.00034038,48]
[331453115,1720424518501,-909.76,0.00034038,31]
[331453116,1720424518543,-1082.5,0.00034038,42]
[331453117,1720424518585,-1786.11,0.00034038,39]
[331453118,1720424518630,-626.54,0.00034038,49]
[331453119,1720424518674,-1786.11,0.00034038,40]
[331453120,1720424518716,-626.54,0.00034038,50]
[331453121,1720424518756,-636.66509112,0.00034038,30]
[331453122,1720424518801,-909.76,0.00034038,32]
[331453123,1720424518860,-1786.11,0.00034038,41]
[331453124,1720424518899,-1082.5,0.00034038,43]
[331453125,1720424518941,-626.54,0.00034038,51]
[331453126,1720424518981,-909.76,0.00034038,33]
[331453127,1720424519022,-1786.11,0.00034038,42]
[331453128,1720424519062,-1082.5,0.00034038,44]
[331453129,1720424519105,-626.54,0.00034038,52]
[331453130,1720424519150,-500.0,0.00034038,30]
[331453131,1720424519194,-909.76,0.00034038,34]
[331453132,1720424519236,-1082.5,0.00034038,45]
[331453133,1720424519276,-626.68706591,0.00034038,53]
[331453134,1720424519316,-500.0,0.00034038,31]
[331453135,1720424519364,-909.76,0.00034038,35]
[331453136,1720424519404,-1786.11,0.00034038,43]
[331453137,1720424519444,-1082.5,0.00034038,46]
[331453138,1720424519484,-500.0,0.00034038,32]
[331453139,1720424519526,-909.76,0.00034038,36]
[331453140,1720424519566,-1786.11,0.00034038,44]
[331453141,1720424519608,-1786.11,0.00034038,45]
[331453142,1720424519647,-500.0,0.00034038,33]
[331453143,1720424519687,-1082.5,0.00034038,47]
[331453144,1720424519978,-909.76,0.00034038,37]
[331453145,1720424520019,-1786.11,0.00034038,46]
[331453146,1720424520059,-500.0,0.00034038,34]
[331453147,1720424520103,-909.76,0.00034038,38]
[331453148,1720424520144,-1082.5,0.00034038,48]
[331453149,1720424520186,-1786.11,0.00034038,47]
[331453150,1720424520229,-500.0,0.00034038,35]
[331453151,1720424520275,-1082.5,0.00034038,49]
[331453152,1720424520317,-909.76,0.00034038,39]
[331453153,1720424520361,-1225.18,0.00034038,30]
[331453154,1720424520402,-1786.11,0.00034038,48]
[331453155,1720424520441,-500.0,0.00034038,36]
[331453156,1720424520482,-1082.5,0.00034038,50]
[331453157,1720424520524,-909.76,0.00034038,40]
[331453158,1720424520565,-1786.11,0.00034038,49]
[331453159,1720424520608,-500.0,0.00034038,30]
[331453160,1720424520648,-500.0,0.00034038,37]
[331453161,1720424520688,-1082.5,0.00034038,51]
[331453162,1720424520726,-1225.18,0.00034038,31]
[331453163,1720424520765,-500.0,0.00034038,31]
[331453164,1720424520807,-500.0,0.00034038,38]
[331453165,1720424520848,-909.76,0.00034038,41]
[331453166,1720424520888,-1225.18,0.00034038,32]
[331453167,1720424520929,-500.0,0.00034038,32]
[331453168,1720424520969,-1786.11,0.00034038,50]
[331453169,1720424521010,-500.0,0.00034038,39]
[331453170,1720424521051,-500.0,0.00034038,33]
[331453171,1720424521091,-909.76,0.00034038,42]
[331453172,1720424521132,-1082.5,0.00034038,52]
[331453173,1720424521175,-1225.18,0.00034038,33]
[331453174,1720424521216,-1786.11,0.00034038,51]
[331453175,1720424521259,-500.0,0.00034038,34]
[331453176,1720424521301,-909.76,0.00034038,43]
[331453177,1720424521341,-1082.62814748,0.00034038,53]
[331453178,1720424521385,-1225.18,0.00034038,34]
[331453179,1720424521427,-1786.11,0.00034038,52]
[331453180,1720424521466,-500.0,0.00034038,35]
[331453181,1720424521507,-1225.18,0.00034038,35]
[331453182,1720424521554,-1786.27692995,0.00034038,53]
[331453183,1720424521595,-500.0,0.00034038,36]
[331453184,1720424521634,-909.76,0.00034038,44]
[331453185,1720424521675,-1225.18,0.00034038,36]
[331453186,1720424521718,-500.0,0.00034038,37]
[331453187,1720424521760,-909.76,0.00034038,45]
[331453188,1720424521800,-1225.18,0.00034038,37]
[331453189,1720424521845,-500.0,0.00034038,38]
[331453190,1720424521885,-909.76,0.00034038,46]
[331453191,1720424521928,-1225.18,0.00034038,38]
[331453192,1720424521970,-500.0,0.00034038,39]
[331453193,1720424522009,-909.76,0.00034038,47]
[331453194,1720424522049,-1225.18,0.00034038,39]
[331453195,1720424522089,-500.0,0.00034038,30]
[331453196,1720424522128,-1225.18,0.00034038,40]
[331453197,1720424522169,-909.76,0.00034038,48]
[331453198,1720424522211,-500.0,0.00034038,31]
[331453199,1720424522251,-500.0,0.00034038,40]
[331453200,1720424522292,-909.76,0.00034038,49]
[331453201,1720424522334,-1225.18,0.00034038,41]
[331453202,1720424522376,-500.0,0.00034038,32]
[331453203,1720424522419,-392.90653209,0.00034038,41]
[331453204,1720424522458,-909.76,0.00034038,50]
[331453205,1720424522500,-1225.18,0.00034038,42]
[331453206,1720424522542,-524.75,0.00034038,30]
[331453207,1720424522582,-500.0,0.00034038,33]
[331453208,1720424522624,-1225.18,0.00034038,43]
[331453209,1720424522664,-1031.56,0.00034038,30]
[331453210,1720424522708,-524.75,0.00034038,31]
[331453211,1720424522748,-500.0,0.00034038,34]
[331453212,1720424522789,-1225.18,0.00034038,44]
[331453213,1720424522831,-909.76,0.00034038,51]
[331453214,1720424522869,-1031.56,0.00034038,31]
[331453215,1720424522912,-524.75,0.00034038,32]
[331453216,1720424522953,-500.0,0.00034038,35]
[331453217,1720424522996,-1225.18,0.00034038,45]
[331453218,1720424523039,-909.76,0.00034038,52]
[331453219,1720424523082,-524.75,0.00034038,33]
[331453220,1720424523123,-500.0,0.00034038,36]
[331453221,1720424523164,-909.89326643,0.00034038,53]
[331453222,1720424523207,-524.75,0.00034038,34]
[331453223,1720424523250,-1031.56,0.00034038,32]
[331453224,1720424523292,-500.0,0.00034038,37]
[331453225,1720424523335,-1225.18,0.00034038,46]
[331453226,1720424523375,-524.75,0.00034038,35]
[331453227,1720424523417,-1031.56,0.00034038,33]
[331453228,1720424523459,-500.0,0.00034038,38]
[331453229,1720424523502,-1225.18,0.00034038,47]
[331453230,1720424523549,-1031.56,0.00034038,34]
[331453231,1720424523596,-524.75,0.00034038,36]
[331453232,1720424523640,-1225.18,0.00034038,48]
[331453233,1720424523687,-500.0,0.00034038,39]
[331453234,1720424523733,-500.0,0.00034038,30]
[331453235,1720424523780,-524.75,0.00034038,37]
[331453236,1720424523827,-500.0,0.00034038,40]
[331453237,1720424523871,-1225.18,0.00034038,49]
[331453238,1720424523919,-500.0,0.00034038,31]
[331453239,1720424523967,-1031.56,0.00034038,35]
[331453240,1720424524013,-524.75,0.00034038,38]
[331453241,1720424524059,-500.0,0.00034038,41]
[331453242,1720424524107,-1225.18,0.00034038,50]
[331453243,1720424524154,-511.01995418,0.00034038,32]
[331453244,1720424524200,-323.0625875,0.00034038,42]
[331453245,1720424524245,-524.75,0.00034038,39]
[331453246,1720424524291,-1031.56,0.00034038,36]
[331453247,1720424524587,-1225.18,0.00034038,51]
[331453248,1720424524639,-1031.56,0.00034038,37]
[331453249,1720424524689,-524.75,0.00034038,40]
[331453250,1720424524735,-1225.18,0.00034038,52]
[331453251,1720424524779,-500.0,0.00034038,30]
[331453252,1720424524833,-1031.56,0.00034038,38]
[331453253,1720424524882,-524.75,0.00034038,41]
[331453254,1720424524932,-500.0,0.00034038,31]
[331453255,1720424524982,-1225.38698263,0.00034038,53]
[331453256,1720424525030,-1031.56,0.00034038,39]
[331453257,1720424525079,-524.75,0.00034038,42]
[331453258,1720424525125,-500.0,0.00034038,32]
[331453259,1720424525173,-1031.56,0.00034038,40]
[331453260,1720424525221,-524.75,0.00034038,43]
[331453261,1720424525268,-500.0,0.00034038,33]
[331453262,1720424525319,-1031.56,0.00034038,41]
[331453263,1720424525369,-524.75,0.00034038,44]
[331453264,1720424525417,-500.0,0.00034038,34]
[331453265,1720424525464,-524.75,0.00034038,45]
[331453266,1720424525510,-500.0,0.00034038,35]
[331453267,1720424525554,-524.75,0.00034038,46]
[331453268,1720424525599,-1031.56,0.00034038,42]
[331453269,1720424525647,-500.0,0.00034038,30]
[331453270,1720424525694,-500.0,0.00034038,36]
[331453271,1720424525741,-524.75,0.00034038,47]
[331453272,1720424525782,-500.0,0.00034038,31]
[331453273,1720424525831,-1031.56,0.00034038,43]
[331453274,1720424525876,-524.49632851,0.00034038,37]
[331453275,1720424525919,-500.0,0.00034038,32]
[331453276,1720424525965,-1031.56,0.00034038,44]
[331453277,1720424526010,-524.75,0.00034038,48]
[331453278,1720424526051,-500.0,0.00034038,33]
[331453279,1720424526097,-1031.56,0.00034038,45]
[331453280,1720424526143,-524.75,0.00034038,49]
[331453281,1720424526187,-500.0,0.00034038,34]
[331453282,1720424526232,-1031.56,0.00034038,46]
[331453283,1720424526275,-524.75,0.00034038,50]
[331453284,1720424526316,-500.0,0.00034038,30]
[331453285,1720424526359,-1031.56,0.00034038,47]
[331453286,1720424526403,-524.75,0.00034038,51]
[331453287,1720424526446,-500.0,0.00034038,35]
[331453288,1720424526490,-500.0,0.00034038,31]
[331453289,1720424526535,-1031.56,0.00034038,48]
[331453290,1720424526580,-533.63803603,0.00034038,36]
[331453291,1720424526621,-524.75,0.00034038,52]
[331453292,1720424526664,-500.0,0.00034038,32]
[331453293,1720424526706,-524.85296087,0.00034038,53]
[331453294,1720424526746,-500.0,0.00034038,33]
[331453295,1720424526788,-500.0,0.00034038,30]
[331453296,1720424526835,-1031.56,0.00034038,49]
[331453297,1720424526877,-500.0,0.00034038,31]
[331453298,1720424526924,-1031.56,0.00034038,50]
[331453299,1720424526968,-500.0,0.00034038,34]
[331453300,1720424527012,-500.0,0.00034038,30]
[331453301,1720424527053,-500.0,0.00034038,32]
[331453302,1720424527096,-1031.56,0.00034038,51]
[331453303,1720424527140,-500.0,0.00034038,35]
[331453304,1720424527186,-500.0,0.00034038,31]
[331453305,1720424527231,-500.0,0.00034038,33]
[331453306,1720424527273,-1031.56,0.00034038,52]
[331453307,1720424527315,-354.82048431,0.00034038,36]
[331453308,1720424527357,-500.0,0.00034038,32]
[331453309,1720424527401,-500.0,0.00034038,30]
[331453310,1720424527442,-500.0,0.00034038,34]
[331453311,1720424527485,-1031.65,0.00034038,53]
[331453312,1720424527528,-500.0,0.00034038,33]
[331453313,1720424527569,-500.0,0.00034038,31]
[331453314,1720424527613,-500.0,0.00034038,35]
[331453315,1720424527656,-500.0,0.00034038,34]
[331453316,1720424527698,-500.0,0.00034038,32]
[331453317,1720424527739,-500.0,0.00034038,36]
[331453318,1720424527779,-500.0,0.00034038,35]
[331453319,1720424527820,-500.0,0.00034038,33]
[331453320,1720424527864,-500.0,0.00034038,37]
[331453321,1720424527911,-500.0,0.00034038,36]
[331453322,1720424527956,-500.0,0.00034038,34]
[331453323,1720424527999,-500.0,0.00034038,38]
[331453324,1720424528041,-1941.34,0.00034038,30]
[331453325,1720424528089,-500.0,0.00034038,37]
[331453326,1720424528134,-500.0,0.00034038,35]
[331453327,1720424528176,-241.00522638,0.00034038,39]
[331453328,1720424528218,-1941.34,0.00034038,31]
[331453329,1720424528262,-500.0,0.00034038,38]
[331453330,1720424528302,-500.0,0.00034038,36]
[331453331,1720424528345,-1941.34,0.00034038,32]
[331453332,1720424528387,-523.12309444,0.00034038,39]
[331453333,1720424528428,-500.0,0.00034038,37]
[331453334,1720424528469,-1941.34,0.00034038,33]
[331453335,1720424528513,-500.0,0.00034038,38]
[331453336,1720424528558,-1941.34,0.00034038,34]
[331453337,1720424528600,-1941.34,0.00034038,35]
[331453338,1720424528643,-500.0,0.00034038,39]
[331453339,1720424528692,-500.0,0.00034038,30]
[331453340,1720424528738,-1941.34,0.00034038,36]
[331453341,1720424528782,-500.0,0.00034038,40]
[331453342,1720424528825,-1941.34,0.00034038,37]
[331453343,1720424528873,-500.0,0.00034038,41]
[331453344,1720424528918,-500.0,0.00034038,31]
[331453345,1720424528964,-1941.34,0.00034038,38]
[331453346,1720424529004,-500.0,0.00034038,32]
[331453347,1720424529050,-1941.34,0.00034038,39]
[331453348,1720424529095,-500.0,0.00034038,33]
[331453349,1720424529138,-500.0,0.00034038,42]
[331453350,1720424529179,-1941.34,0.00034038,40]
[331453351,1720424529475,-500.0,0.00034038,34]
[331453352,1720424529522,-500.0,0.00034038,43]
[331453353,1720424529566,-1941.34,0.00034038,41]
[331453354,1720424529611,-500.0,0.00034038,44]
[331453355,1720424529658,-1941.34,0.00034038,42]
[331453356,1720424529707,-500.0,0.00034038,45]
[331453357,1720424529754,-1941.34,0.00034038,43]
[331453358,1720424529801,-500.0,0.00034038,46]
[331453359,1720424529849,-1941.34,0.00034038,44]
[331453360,1720424529897,-500.0,0.00034038,47]
[331453361,1720424529944,-500.0,0.00034038,30]
[331453362,1720424529988,-328.43220347,0.00034038,48]
[331453363,1720424530035,-1941.34,0.00034038,45]
[331453364,1720424530087,-500.0,0.00034038,31]
[331453365,1720424530134,-500.0,0.00034038,30]
[331453366,1720424530180,-1941.34,0.00034038,46]
[331453367,1720424530226,-500.0,0.00034038,32]
[331453368,1720424530271,-500.0,0.00034038,31]
[331453369,1720424530318,-500.0,0.00034038,30]
[331453370,1720424530367,-1941.34,0.00034038,47]
[331453371,1720424530409,-500.0,0.00034038,33]
[331453372,1720424530453,-513.33029879,0.00034038,32]
[331453373,1720424530495,-1941.34,0.00034038,48]
[331453374,1720424530536,-500.0,0.00034038,34]
[331453375,1720424530577,-500.0,0.00034038,31]
[331453376,1720424530621,-1941.34,0.00034038,49]
[331453377,1720424530661,-500.0,0.00034038,35]
[331453378,1720424530703,-500.0,0.00034038,32]
[331453379,1720424530743,-1941.34,0.00034038,50]
[331453380,1720424530783,-522.14590579,0.00034038,36]
[331453381,1720424530827,-500.0,0.00034038,33]
[331453382,1720424530881,-1941.34,0.00034038,51]
[331453383,1720424530924,-500.0,0.00034038,34]
[331453384,1720424530966,-1941.34,0.00034038,52]
[331453385,1720424531007,-500.0,0.00034038,30]
[331453386,1720424531047,-1941.41943543,0.00034038,53]
[331453387,1720424531089,-500.0,0.00034038,35]
[331453388,1720424531130,-500.0,0.00034038,30]
[331453389,1720424531171,-500.0,0.00034038,36]
[331453390,1720424531212,-500.0,0.00034038,31]
[331453391,1720424531253,-500.0,0.00034038,31]
[331453392,1720424531292,-220.06397462,0.00034038,32]
[331453393,1720424531335,-500.0,0.00034038,37]
[331453394,1720424531381,-500.0,0.00034038,38]
[331453395,1720424531421,-500.0,0.00034038,30]
[331453396,1720424531460,-500.0,0.00034038,39]
[331453397,1720424531499,-500.0,0.00034038,31]
[331453398,1720424531540,-500.0,0.00034038,40]
[331453399,1720424531583,-500.99725305,0.00034038,30]
[331453400,1720424531623,-500.0,0.00034038,41]
[331453401,1720424531664,-500.0,0.00034038,32]
[331453402,1720424531702,-500.0,0.00034038,42]
[331453403,1720424531742,-500.0,0.00034038,33]
[331453404,1720424531782,-500.0,0.00034038,43]
[331453405,1720424531820,-500.0,0.00034038,34]
[331453406,1720424531860,-583.77,0.00034038,30]
[331453407,1720424531901,-500.0,0.00034038,44]
[331453408,1720424531944,-813.2,0.00034038,30]
[331453409,1720424531986,-500.0,0.00034038,35]
[331453410,1720424532029,-583.77,0.00034038,31]
[331453411,1720424532069,-500.0,0.00034038,45]
[331453412,1720424532114,-813.2,0.00034038,31]
[331453413,1720424532154,-500.0,0.00034038,36]
[331453414,1720424532194,-583.77,0.00034038,32]
[331453415,1720424532234,-813.2,0.00034038,32]
[331453416,1720424532275,-265.04486405,0.00034038,46]
[331453417,1720424532316,-500.0,0.00034038,37]
[331453418,1720424532358,-583.77,0.00034038,33]
[331453419,1720424532399,-813.2,0.00034038,33]
[331453420,1720424532439,-500.0,0.00034038,38]
[331453421,1720424532479,-583.77,0.00034038,34]
[331453422,1720424532518,-498.30034027,0.00034038,39]
[331453423,1720424532559,-583.77,0.00034038,35]
[331453424,1720424532602,-813.2,0.00034038,34]
[331453425,1720424532641,-583.77,0.00034038,36]
[331453426,1720424532681,-813.2,0.00034038,35]
[331453427,1720424532721,-813.2,0.00034038,36]
[331453428,1720424532762,-583.77,0.00034038,37]
[331453429,1720424532806,-813.2,0.00034038,37]
[331453430,1720424532848,-583.77,0.00034038,38]
[331453431,1720424532889,-813.2,0.00034038,38]
[331453432,1720424532933,-583.77,0.00034038,39]
[331453433,1720424532976,-1615.72,0.00034038,30]
[331453434,1720424533019,-813.2,0.00034038,39]
[331453435,1720424533062,-583.77,0.00034038,40]
[331453436,1720424533105,-1615.72,0.00034038,31]
[331453437,1720424533151,-813.2,0.00034038,40]
[331453438,1720424533193,-583.77,0.00034038,41]
[331453439,1720424533235,-1615.72,0.00034038,32]
[331453440,1720424533276,-813.2,0.00034038,41]
[331453441,1720424533315,-583.77,0.00034038,42]
[331453442,1720424533355,-1615.72,0.00034038,33]
[331453443,1720424533394,-399.37802007,0.00034038,32]
[331453444,1720424533434,-813.2,0.00034038,42]
[331453445,1720424533474,-1615.72,0.00034038,34]
[331453446,1720424533516,-583.77,0.00034038,43]
[331453447,1720424533560,-813.2,0.00034038,43]
[331453448,1720424533601,-1615.72,0.00034038,35]
[331453449,1720424533642,-583.77,0.00034038,44]
[331453450,1720424533684,-813.2,0.00034038,44]
[331453451,1720424533726,-1615.72,0.00034038,36]
[331453452,1720424533768,-583.77,0.00034038,45]
[331453453,1720424533813,-813.2,0.00034038,45]
[331453454,1720424533866,-1615.72,0.00034038,37]
[331453455,1720424533918,-583.77,0.00034038,46]
[331453456,1720424533962,-813.2,0.00034038,46]
[331453457,1720424534005,-1615.72,0.00034038,38]
[331453458,1720424534052,-583.77,0.00034038,47]
[331453459,1720424534096,-813.2,0.00034038,47]
[331453460,1720424534140,-583.77,0.00034038,48]
[331453461,1720424534184,-813.2,0.00034038,48]
[331453462,1720424534230,-1615.72,0.00034038,39]
[331453463,1720424534276,-583.77,0.00034038,49]
[331453464,1720424534321,-813.2,0.00034038,49]
[331453465,1720424534364,-500.0,0.00034038,30]
[331453466,1720424534408,-500.0,0.00034038,30]
[331453467,1720424534453,-1615.72,0.00034038,40]
[331453468,1720424534495,-583.77,0.00034038,50]
[331453469,1720424534541,-813.2,0.00034038,50]
[331453470,1720424534584,-500.0,0.00034038,31]
[331453471,1720424534625,-1615.72,0.00034038,41]
[331453472,1720424534668,-583.77,0.00034038,51]
[331453473,1720424534710,-500.0,0.00034038,32]
[331453474,1720424534752,-813.2,0.00034038,51]
[331453475,1720424534795,-500.0,0.00034038,31]
[331453476,1720424534841,-1615.72,0.00034038,42]
[331453477,1720424534887,-583.77,0.00034038,52]
[331453478,1720424534929,-500.0,0.00034038,33]
[331453479,1720424534972,-813.2,0.00034038,52]
[331453480,1720424535017,-1615.72,0.00034038,43]
[331453481,1720424535060,-500.0,0.00034038,32]
[331453482,1720424535104,-583.8264174,0.00034038,53]
[331453483,1720424535149,-500.0,0.00034038,34]
[331453484,1720424535193,-813.39392167,0.00034038,53]
[331453485,1720424535236,-1615.72,0.00034038,44]
[331453486,1720424535279,-500.0,0.00034038,33]
[331453487,1720424535329,-500.0,0.00034038,35]
[331453488,1720424535376,-1615.72,0.00034038,45]
[331453489,1720424535419,-500.0,0.00034038,34]
[331453490,1720424535462,-500.0,0.00034038,35]
[331453491,1720424535504,-1615.72,0.00034038,46]
[331453492,1720424535547,-500.0,0.00034038,36]
[331453493,1720424535591,-500.0,0.00034038,36]
[331453494,1720424535633,-1615.72,0.00034038,47]
[331453495,1720424535675,-500.0,0.00034038,37]
[331453496,1720424535719,-500.0,0.00034038,37]
[331453497,1720424535762,-1615.72,0.00034038,48]
[331453498,1720424535821,-500.0,0.00034038,38]
[331453499,1720424535872,-500.0,0.00034038,38]
[331453500,1720424535926,-500.0,0.00034038,30]
[331453501,1720424535982,-1615.72,0.00034038,49]
[331453502,1720424536037,-500.0,0.00034038,39]
[331453503,1720424536094,-500.0,0.00034038,39]
[331453504,1720424536154,-500.0,0.00034038,31]
[331453505,1720424536206,-1615.72,0.00034038,50]
[331453506,1720424536256,-479.82115864,0.00034038,40]
[331453507,1720424536311,-500.0,0.00034038,40]
[331453508,1720424536370,-500.0,0.00034038,32]
[331453509,1720424536425,-500.0,0.00034038,30]
[331453510,1720424536476,-500.0,0.00034038,33]
[331453511,1720424536530,-521.55,0.00034038,30]
[331453512,1720424536585,-1615.72,0.00034038,51]
[331453513,1720424536641,-505.66383325,0.00034038,31]
[331453514,1720424536689,-500.0,0.00034038,34]
[331453515,1720424536744,-521.55,0.00034038,31]
[331453516,1720424536802,-521.55,0.00034038,32]
[331453517,1720424536861,-1615.72,0.00034038,52]
[331453518,1720424536918,-500.0,0.00034038,35]
[331453519,1720424536973,-521.55,0.00034038,33]
[331453520,1720424537027,-1615.90470197,0.00034038,53]
[331453521,1720424537090,-500.0,0.00034038,41]
[331453522,1720424537145,-521.55,0.00034038,34]
[331453523,1720424537199,-500.0,0.00034038,36]
[331453524,1720424537252,-521.55,0.00034038,35]
[331453525,1720424537304,-500.0,0.00034038,42]
[331453526,1720424537356,-500.0,0.00034038,37]
[331453527,1720424537407,-521.55,0.00034038,36]
[331453528,1720424537457,-500.0,0.00034038,30]
[331453529,1720424537509,-500.0,0.00034038,43]
[331453530,1720424537559,-500.0,0.00034038,38]
[331453531,1720424537608,-521.55,0.00034038,37]
[331453532,1720424537660,-500.0,0.00034038,31]
[331453533,1720424537709,-500.0,0.00034038,44]
[331453534,1720424537757,-521.55,0.00034038,38]
[331453535,1720424537807,-500.0,0.00034038,32]
[331453536,1720424537863,-459.0119379,0.00034038,45]
[331453537,1720424537914,-500.0,0.00034038,39]
[331453538,1720424537965,-521.55,0.00034038,39]
[331453539,1720424538014,-500.0,0.00034038,33]
[331453540,1720424538066,-500.0,0.00034038,40]
[331453541,1720424538116,-521.55,0.00034038,40]
[331453542,1720424538166,-500.0,0.00034038,34]
[331453543,1720424538217,-500.0,0.00034038,41]
[331453544,1720424538265,-521.55,0.00034038,41]
[331453545,1720424538314,-500.0,0.00034038,35]
[331453546,1720424538364,-500.0,0.00034038,42]
[331453547,1720424538412,-521.55,0.00034038,42]
[331453548,1720424539434,-500.0,0.00034038,36]
[331453549,1720424539516,-197.9810251,0.00034038,43]
[331453550,1720424539560,-521.55,0.00034038,43]
[331453551,1720424539604,-500.0,0.00034038,37]
[331453552,1720424539647,-521.55,0.00034038,44]
[331453553,1720424539690,-500.0,0.00034038,38]
[331453554,1720424539730,-521.55,0.00034038,45]
[331453555,1720424539771,-500.0,0.00034038,39]
[331453556,1720424539815,-521.55,0.00034038,46]
[331453557,1720424539858,-500.0,0.00034038,40]
[331453558,1720424539899,-521.55,0.00034038,47]
[331453559,1720424539941,-521.55,0.00034038,48]
[331453560,1720424539982,-521.55,0.00034038,49]
[331453561,1720424540024,-521.55,0.00034038,50]
[331453562,1720424540064,-409.39502674,0.00034038,41]
[331453563,1720424540104,-500.0,0.00034038,30]
[331453564,1720424540148,-521.55,0.00034038,51]
[331453565,1720424540191,-500.0,0.00034038,31]
[331453566,1720424540233,-521.55,0.00034038,52]
[331453567,1720424540276,-506.80866822,0.00034038,32]
[331453568,1720424540319,-521.56081161,0.00034038,53]
[331453569,1720424540361,-504.18,0.00034038,30]
[331453570,1720424540405,-504.18,0.00034038,31]
[331453571,1720424540446,-504.18,0.00034038,32]
[331453572,1720424540486,-504.18,0.00034038,33]
[331453573,1720424540528,-504.18,0.00034038,34]
[331453574,1720424540568,-504.18,0.00034038,35]
[331453575,1720424540612,-504.18,0.00034038,36]
[331453576,1720424540654,-500.0,0.00034038,30]
[331453577,1720424540694,-504.18,0.00034038,37]
[331453578,1720424540735,-500.0,0.00034038,31]
[331453579,1720424540778,-504.18,0.00034038,38]
[331453580,1720424540820,-500.0,0.00034038,32]
[331453581,1720424540866,-500.0,0.00034038,33]
[331453582,1720424540905,-504.18,0.00034038,39]
[331453583,1720424540947,-500.0,0.00034038,34]
[331453584,1720424540987,-504.18,0.00034038,40]
[331453585,1720424541027,-500.0,0.00034038,30]
[331453586,1720424541064,-500.0,0.00034038,35]
[331453587,1720424541100,-504.18,0.00034038,41]
[331453588,1720424541139,-500.0,0.00034038,31]
[331453589,1720424541180,-500.0,0.00034038,36]
[331453590,1720424541226,-504.18,0.00034038,42]
[331453591,1720424541270,-500.0,0.00034038,32]
[331453592,1720424541310,-563.37755327,0.00034038,37]
[331453593,1720424541349,-504.18,0.00034038,43]
[331453594,1720424541390,-500.0,0.00034038,33]
[331453595,1720424541429,-500.0,0.00034038,34]
[331453596,1720424541467,-504.18,0.00034038,44]
[331453597,1720424541506,-500.0,0.00034038,35]
[331453598,1720424541546,-504.18,0.00034038,45]
[331453599,1720424541585,-500.0,0.00034038,36]
[331453600,1720424541625,-504.18,0.00034038,46]
[331453601,1720424541663,-500.0,0.00034038,37]
[331453602,1720424541701,-504.18,0.00034038,47]
[331453603,1720424541739,-504.18,0.00034038,48]
[331453604,1720424541778,-500.0,0.00034038,38]
[331453605,1720424541815,-500.0,0.00034038,39]